fUST/lending_fUST_20251206
["ID","MTS","AMOUNT","RATE_DAILY","PERIOD"]
[396492405,1765000679894,-500.06122428,0.00010988,2]
[396492406,1765000679903,-500.0,0.00010988,2]
[396492407,1765000679912,-500.0,0.00010988,2]
[396492408,1765000679922,-500.0,0.00010988,2]
[396492409,1765000679931,-464.45511965,0.00010988,2]
[396492410,1765000679968,-35.54488035,0.00010988,2]
[396492411,1765000679998,-500.0,0.00010988,2]
[396492412,1765000680029,-500.0,0.00010988,2]
[396492413,1765000680060,-1108.33,0.00010988,2]
[396492414,1765000680092,-793.79,0.00010988,2]
[396492415,1765000680123,-500.0,0.00010988,2]
[396492416,1765000680156,-500.0,0.00010988,2]
[396492417,1765000680188,-713.24,0.00010988,2]
[396492418,1765000680221,-198.2002393,0.00010988,2]
[396492419,1765000680386,-301.7997607,0.00010988,2]
[396492420,1765000680417,-500.0,0.00010988,2]
[396492421,1765000680446,-500.0,0.00010988,2]
[396492422,1765000684211,500.0,0.00010987,2]
[396492423,1765000687184,151.67,9.8e-05,2]
[396492424,1765000688030,500.0,0.00010987,2]
[396492425,1765000691257,151.67,0.000103,2]
[396492426,1765000691608,151.67,0.000108,2]
[396492427,1765000695462,500.0,0.00010987,2]
[396492428,1765000698898,8326.0,0.00010987,2]
[396492429,1765000702645,500.0,0.00010987,2]
[396492430,1765000705774,500.0,0.00010987,2]
[396492431,1765000706843,500.0,0.00010987,2]
[396492432,1765000719730,174.01,0.00010987,2]
[396492433,1765000719755,325.99,0.00010987,2]
[396492434,1765000721510,578.3387515,0.00010988,2]
[396492435,1765000726989,150.0,8.607e-05,2]
[396492436,1765000728082,150.0,9.389e-05,2]
[396492437,1765000728296,150.0,0.00010172,2]
[396492438,1765000728727,150.0,0.00010954,2]
[396492439,1765000729681,1566.72,0.00010987,2]
[396492440,1765000729895,5000.0,0.00010988,2]
[396492441,1765000732122,1881.55,0.00010987,2]
[396492442,1765000736504,-1397875.08434395,0.00036047,20]
[396492443,1765000736528,-489.87194763,0.00036047,120]
[396492444,1765000736552,-1015.49762853,0.00036047,120]
[396492445,1765000736575,-286.32418659,0.00036047,120]
[396492446,1765000736597,-1545.37083839,0.00036047,30]
[396492447,1765000736619,-794.9001357,0.00036047,120]
[396492448,1765000736641,-1003.8147621,0.00036047,120]
[396492449,1765000736664,-326.05446061,0.00036047,60]
[396492450,1765000736687,-953.21218464,0.00036047,120]
[396492451,1765000736716,-330.99244328,0.00036047,120]
[396492452,1765000736740,-921.44141559,0.00036047,60]
[396492453,1765000736761,-357.58531397,0.00036047,120]
[396492454,1765000736785,-876.19680249,0.00036047,30]
[396492455,1765000736808,-387.30606757,0.00036047,30]
[396492456,1765000736829,-240.82074905,0.00036047,120]
[396492457,1765000736851,-216.31138514,0.00036047,30]
[396492458,1765000736873,-251.94299371,0.00036047,120]
[396492459,1765000736897,-498.40914241,0.00036047,30]
[396492460,1765000736920,-1052.05205146,0.00036047,120]
[396492461,1765000736943,-576.98495911,0.00036047,120]
[396492462,1765000736965,-1048.56794266,0.00036047,120]
[396492463,1765000736986,-384.86327523,0.00036047,30]
[396492464,1765000737007,-1223.38071656,0.00036047,30]
[396492465,1765000737031,-443.48681785,0.00036047,120]
[396492466,1765000737052,-1852.48608054,0.00036047,120]
[396492467,1765000737075,-224.61325596,0.00036047,120]
[396492468,1765000737098,-329.55636151,0.00036047,120]
[396492469,1765000737122,-440.01421329,0.00036047,60]
[396492470,1765000737145,-2383.27323173,0.00036047,60]
[396492471,1765000737168,-204.92833608,0.00036047,120]
[396492472,1765000737192,-513.23624504,0.00036047,60]
[396492473,1765000737215,-2006.76105589,0.00036047,30]
[396492474,1765000737238,-169.01015877,0.00036047,120]
[396492475,1765000737262,-552.48338017,0.00036047,120]
[396492476,1765000737285,-626.20600832,0.00036047,120]
[396492477,1765000737308,-311.983618,0.00036047,120]
[396492478,1765000737331,-367.80335158,0.00036047,120]
[396492479,1765000737357,-357.78942059,0.00036047,120]
[396492480,1765000737381,-949.52832375,0.00036047,120]
[396492481,1765000737405,-177.47633295,0.00036047,120]
[396492482,1765000737428,-720.17027618,0.00036047,60]
[396492483,1765000737453,-507.7682598,0.00036047,120]
[396492484,1765000737475,-220.41677766,0.00036047,30]
[396492485,1765000737498,-627.28351583,0.00036047,120]
[396492486,1765000737521,-688.41265506,0.00036047,30]
[396492487,1765000737543,-162.72400249,0.00036047,120]
[396492488,1765000737566,-586.75709376,0.00036047,120]
[396492489,1765000737589,-3060.4909948,0.00036047,30]
[396492490,1765000737611,-1010.77277047,0.00036047,30]
[396492491,1765000737634,-950.24138498,0.00036047,60]
[396492492,1765000737658,-488.75427123,0.00036047,60]
[396492493,1765000737684,-338.31875244,0.00036047,30]
[396492494,1765000737719,-194.98852541,0.00036047,120]
[396492495,1765000737741,-731.94665951,0.00036047,120]
[396492496,1765000737773,-486.92905925,0.00036047,120]
[396492497,1765000737805,-906.22733421,0.00036047,30]
[396492498,1765000737829,-458.65302847,0.00036047,30]
[396492499,1765000737851,-157.08306512,0.00036047,30]
[396492500,1765000737873,-1000.04901918,0.00036047,120]
[396492501,1765000737898,-12725.0,0.00036047,120]
[396492502,1765000737922,-1247.56333056,0.00036047,62]
[396492503,1765000737946,-30000.0,0.00036047,120]
[396492504,1765000737972,-162600.0,0.00036047,90]
[396492505,1765000737996,-5000.0,0.00036047,30]
[396492506,1765000738019,-1350561.8272852,0.00036047,20]
[396492507,1765000739003,47.4112485,0.00010988,2]
[396492508,1765000739027,4952.5887515,0.00010988,2]
[396492509,1765000739614,1643.95,0.00010987,2]
[396492510,1765000739694,1865.65,0.00010987,2]
[396492511,1765000743417,-3000000.0,0.00036047,20]
[396492512,1765000744122,500.0,0.00010988,2]
[396492513,1765000744497,-9082.8212485,0.00010988,2]
[396492514,1765000744559,-10000.01,0.00010988,2]
[396492515,1765000744652,-10000.01,0.00010988,2]
[396492516,1765000744883,151.54,0.0001,2]
[396492517,1765000745190,151.54,0.000107,2]
[396492518,1765000746884,-500.0,0.00010988,2]
[396492519,1765000746944,-8696.93,0.00010988,2]
[396492520,1765000746980,-10000.01,0.00010988,2]
[396492521,1765000747113,-10000.01,0.00010988,2]
[396492522,1765000753990,5000.0,0.00010947,2]
[396492523,1765000758771,-85220.56,0.00036047,30]
[396492524,1765000758797,-518.6075092,0.00036047,120]
[396492525,1765000758821,-3000.0,0.00036047,120]
[396492526,1765000758848,-50000.0,0.00036047,60]
[396492527,1765000758873,-50000.0,0.00036047,45]
[396492528,1765000758895,-2000.0,0.00036047,30]
[396492529,1765000758919,-264.53982785,0.00036047,120]
[396492530,1765000758941,-7915.0,0.00036047,120]
[396492531,1765000758963,-1000000.0,0.00036047,120]
[396492532,1765000758986,-2022.9,0.00036047,30]
[396492533,1765000759008,-432.0,0.00036047,120]
[396492534,1765000759031,-3036.89045428,0.00036047,30]
[396492535,1765000759055,-1774.31555046,0.00036047,30]
[396492536,1765000759078,-25290.0,0.00036047,120]
[396492537,1765000759101,-4105.61129648,0.00036047,120]
[396492538,1765000759124,-1388.2527718,0.00036047,120]
[396492539,1765000759146,-3495.20523234,0.00036047,120]
[396492540,1765000759169,-8109.62326267,0.00036047,66]
[396492541,1765000759193,-330.70505005,0.00036047,30]
[396492542,1765000759220,-155.27442431,0.00036047,31]
[396492543,1765000759243,-2517.94645579,0.00036047,30]
[396492544,1765000759268,-1857.64365261,0.00036047,120]
[396492545,1765000759292,-526.67632,0.00036047,120]
[396492546,1765000759316,-2400.0,0.00036047,30]
[396492547,1765000759340,-207444.1995513,0.00036047,60]
[396492548,1765000759362,-929.02559884,0.00036047,30]
[396492549,1765000759385,-598.52235919,0.00036047,120]
[396492550,1765000759409,-566.85259962,0.00036047,120]
[396492551,1765000759437,-300.56632603,0.00036047,120]
[396492552,1765000759462,-1094.9,0.00036047,31]
[396492553,1765000759487,-300.0,0.00036047,31]
[396492554,1765000759513,-1532404.18175718,0.00036047,30]
[396492555,1765000761803,5000.0,0.00010947,2]
[396492556,1765000763571,-487956.21641377,0.00036047,30]
[396492557,1765000763594,-3000.0,0.00036047,120]
[396492558,1765000763618,-1600.0,0.00036047,30]
[396492559,1765000763641,-2439.60356612,0.00036047,120]
[396492560,1765000763664,-205.963055,0.00036047,40]
[396492561,1765000763686,-205.963055,0.00036047,40]
[396492562,1765000763711,-333411.52446785,0.00036047,30]
[396492563,1765000763734,-151.0,0.00036047,31]
[396492564,1765000763758,-151.0,0.00036047,31]
[396492565,1765000763782,-151.0,0.00036047,31]
[396492566,1765000763806,-151.0,0.00036047,31]
[396492567,1765000763835,-151.0,0.00036047,31]
[396492568,1765000763859,-151.0,0.00036047,31]
[396492569,1765000763882,-151.0,0.00036047,31]
[396492570,1765000763906,-275.885191,0.00036047,31]
[396492571,1765000763932,-500.0,0.00036047,30]
[396492572,1765000763956,-502.4917934,0.00036047,30]
[396492573,1765000763979,-500.0,0.00036047,120]
[396492574,1765000764002,-151.0,0.00036047,30]
[396492575,1765000764025,-151.0,0.00036047,30]
[396492576,1765000764047,-151.0,0.00036047,30]
[396492577,1765000764070,-151.0,0.00036047,30]
[396492578,1765000764093,-151.0,0.00036047,30]
[396492579,1765000764117,-226.446515,0.00036047,30]
[396492580,1765000764142,-151.0,0.00036047,31]
[396492581,1765000764166,-151.0,0.00036047,31]
[396492582,1765000764190,-151.0,0.00036047,31]
[396492583,1765000764215,-151.0,0.00036047,31]
[396492584,1765000764239,-151.0,0.00036047,31]
[396492585,1765000764263,-151.0,0.00036047,31]
[396492586,1765000764286,-151.0,0.00036047,31]
[396492587,1765000764310,-151.0,0.00036047,31]
[396492588,1765000764332,-151.0,0.00036047,31]
[396492589,1765000764356,-151.0,0.00036047,31]
[396492590,1765000764379,-192.871909,0.00036047,31]
[396492591,1765000764405,-347.28208,0.00036047,31]
[396492592,1765000764429,-347.28208,0.00036047,31]
[396492593,1765000764453,-347.28208,0.00036047,31]
[396492594,1765000764477,-347.28208,0.00036047,31]
[396492595,1765000764501,-347.28208,0.00036047,31]
[396492596,1765000764524,-347.28208,0.00036047,31]
[396492597,1765000764547,-347.28208,0.00036047,31]
[396492598,1765000764570,-347.28208,0.00036047,31]
[396492599,1765000764593,-347.28208,0.00036047,31]
[396492600,1765000764616,-347.28208,0.00036047,31]
[396492601,1765000764640,-347.28208,0.00036047,31]
[396492602,1765000764663,-347.28208,0.00036047,31]
[396492603,1765000764687,-347.28208,0.00036047,31]
[396492604,1765000764718,-347.28208,0.00036047,31]
[396492605,1765000764743,-347.28208,0.00036047,31]
[396492606,1765000764767,-347.28208,0.00036047,31]
[396492607,1765000764792,-347.28208,0.00036047,31]
[396492608,1765000764816,-347.28208,0.00036047,31]
[396492609,1765000764840,-347.28208,0.00036047,31]
[396492610,1765000764866,-347.282086,0.00036047,31]
[396492611,1765000764891,-200.0,0.00036047,30]
[396492612,1765000778176,5000.0,0.000211,99]
[396492615,1765000786651,5000.0,0.000211,99]
[396492616,1765000796183,-500.0,0.00010987,2]
[396492617,1765000796213,-4154.16,0.00010987,2]
[396492618,1765000796243,-191.69,0.00010987,2]
[396492619,1765000798995,150.0,8.147e-05,2]
[396492620,1765000799383,150.0,8.888e-05,2]
[396492621,1765000799421,-308.31,0.00010987,2]
[396492622,1765000799452,-745.45,0.00010987,2]
[396492623,1765000799483,-1699.0,0.00010987,2]
[396492624,1765000799513,-500.0,0.00010987,2]
[396492625,1765000799545,-619.8,0.00010987,2]
[396492626,1765000799914,150.0,9.628e-05,2]
[396492627,1765000800210,150.0,0.00010369,2]
[396492628,1765000801606,5000.0,0.000211,99]
[396492629,1765000802275,-2091.09,0.00010987,2]
[396492630,1765000804117,1045.17,0.0001,10]
[396492631,1765000804554,152.52,9.8e-05,2]
[396492632,1765000804946,152.52,0.0001,2]
[396492633,1765000805210,-4182.18,0.00010987,2]
[396492634,1765000805244,-16.68,0.00010987,2]
[396492635,1765000805299,152.52,0.000101,2]
[396492636,1765000805625,152.52,0.000103,2]
[396492637,1765000806003,152.52,0.000105,2]
[396492638,1765000806274,152.52,0.000107,2]
[396492639,1765000808340,-152.52,0.000109,2]
[396492640,1765000808372,-1618.97,0.00010987,2]
[396492641,1765000808400,-500.0,0.00010987,2]
[396492642,1765000808430,-240.0,0.00010987,2]
[396492643,1765000808458,-500.0,0.00010988,2]
[396492644,1765000808488,-500.0,0.00010988,2]
[396492645,1765000808517,-500.0,0.00010988,2]
[396492646,1765000808545,-500.0,0.00010988,2]
[396492647,1765000809188,172.05973531,0.00010988,2]
[396492648,1765000809392,371.0,0.00010986,2]
[396492649,1765000809434,5000.0,0.000211,99]
[396492650,1765000812626,433.97026469,0.00010988,2]
[396492651,1765000824331,5000.0,0.00010948,2]
[396492652,1765000832781,5000.0,0.00010948,2]
[396492653,1765000842273,-500.0,0.00010987,2]
[396492654,1765000842309,-1275.51,0.00010987,2]
[396492655,1765000842340,-626.48,0.00010987,2]
[396492656,1765000842370,-1254.56,0.00010987,2]
[396492657,1765000842401,-500.0,0.00010987,2]
[396492658,1765000842431,-98.44973531,0.00010988,2]
[396492659,1765000842462,-500.0,0.00010988,2]
[396492660,1765000845113,-500.0,0.00010988,2]
[396492661,1765000845145,-500.0,0.00010988,2]
[396492662,1765000845175,-500.0,0.00010988,2]
[396492663,1765000845207,-500.0,0.00010988,2]
[396492664,1765000845240,-500.0,0.00010988,2]
[396492665,1765000845270,-500.0,0.00010988,2]
[396492666,1765000845300,-500.0,0.00010988,2]
[396492667,1765000845332,-987.84,0.00010988,2]
[396492668,1765000848235,1024.33,0.0001085,2]
[396492669,1765000848258,3975.67,0.0001085,2]
[396492670,1765000851277,-500.0,0.00010988,2]
[396492671,1765000852528,834.39,0.00010988,2]
[396492672,1765000852950,849.1,0.00010987,2]
[396492673,1765000853947,500.0,0.00010988,2]
[396492674,1765000854287,500.0,0.00010988,2]
[396492675,1765000854803,1323.14,0.00010988,2]
[396492676,1765000856580,4993.38,0.00010988,2]
[396492677,1765000866412,150.0,8.15e-05,2]
[396492678,1765000866808,150.0,8.891e-05,2]
[396492679,1765000867238,150.0,9.632e-05,2]
[396492680,1765000867658,176.0,0.00010373,2]
[396492681,1765000867704,151.15,9.8e-05,2]
[396492682,1765000867955,151.15,9.9e-05,2]
[396492683,1765000868879,151.15,0.0001,2]
[396492684,1765000869188,151.15,0.0001,2]
[396492685,1765000869477,151.15,0.000101,2]
[396492686,1765000869806,151.15,0.000102,2]
[396492687,1765000870132,151.15,0.000103,2]
[396492688,1765000870466,151.15,0.000104,2]
[396492689,1765000870801,151.15,0.000105,2]
[396492690,1765000871127,151.15,0.000106,2]
[396492691,1765000871514,151.15,0.000107,2]
[396492692,1765000871810,151.15,0.000108,2]
[396492693,1765000871917,5000.0,0.00010948,2]
[396492694,1765000872219,151.15,0.000109,2]
[396492696,1765000903529,-168.0,0.00010986,2]
[396492697,1765000903560,-4064.48,0.00010987,2]
[396492698,1765000909417,-2480.55,0.00010987,2]
[396492699,1765000909447,-500.0,0.00010987,2]
[396492700,1765000909478,-500.0,0.00010987,2]
[396492701,1765000909508,-221.88,0.00010987,2]
[396492702,1765000912482,-2595.15,0.00010987,2]
[396492703,1765000912512,-500.0,0.00010987,2]
[396492704,1765000912542,-500.0,0.00010987,2]
[396492705,1765000912571,-1268.17,0.00010987,2]
[396492706,1765000917094,5000.0,0.0001085,2]
[396492707,1765000933174,156.05,9.8e-05,2]
[396492708,1765000933500,156.05,9.8e-05,2]
[396492709,1765000933768,156.05,9.9e-05,2]
[396492710,1765000934039,156.05,0.0001,2]
[396492711,1765000934116,-273.37,0.00010987,2]
[396492712,1765000934147,-510.2,0.00010987,2]
[396492713,1765000934181,-500.0,0.00010987,2]
[396492714,1765000934212,-1138.84,0.00010987,2]
[396492715,1765000934242,-984.68,0.00010987,2]
[396492716,1765000934274,-500.0,0.00010988,2]
[396492717,1765000934306,-500.0,0.00010988,2]
[396492718,1765000934597,156.05,0.000101,2]
[396492719,1765000934728,156.05,0.000102,2]
[396492720,1765000934950,156.05,0.000103,2]
[396492721,1765000935331,156.05,0.000104,2]
[396492722,1765000935646,156.05,0.000105,2]
[396492723,1765000935922,156.05,0.000105,2]
[396492724,1765000936205,156.05,0.000106,2]
[396492725,1765000936488,156.05,0.000107,2]
[396492726,1765000937268,156.05,0.000108,2]
[396492727,1765000937430,156.05,0.000109,2]
[396492728,1765000941007,-187.76308505,0.00010947,2]
[396492729,1765000943139,-198.7429994,0.00010947,2]
[396492730,1765000943190,-2305.31290831,0.00010947,2]
[396492731,1765000943223,-2204.88,0.00010987,2]
[396492732,1765000943474,150.0,8.084e-05,2]
[396492733,1765000943722,154.01,8.819e-05,2]
[396492734,1765000944152,231.02,9.554e-05,2]
[396492735,1765000944582,308.03,0.00010289,2]
[396492736,1765000946189,-1208.42,0.00010988,2]
[396492737,1765000946222,-500.0,0.00010988,2]
[396492738,1765000946255,-500.0,0.00010988,2]
[396492739,1765000946287,-500.0,0.00010988,2]
[396492740,1765000946319,-500.0,0.00010988,2]
[396492741,1765000946350,-500.0,0.00010988,2]
[396492742,1765000946382,-500.0,0.00010988,2]
[396492743,1765000946413,-500.0,0.00010988,2]
[396492744,1765000946443,-83.17,0.00010988,2]
[396492745,1765000955543,150.0,0.00010948,2]
[396492746,1765000963387,5000.0,0.00010948,2]
[396492747,1765000980522,-1717.17,0.00010987,2]
[396492748,1765000980557,-500.0,0.00010987,2]
[396492749,1765000980590,-1521.07,0.00010987,2]
[396492750,1765000980620,-1097.3,0.00010987,2]
[396492751,1765000989066,-2340.88107514,0.00010948,2]
[396492752,1765000989099,-2530.15,0.00010987,2]
[396492753,1765000992218,-500.0,0.00010987,2]
[396492754,1765000995067,152.14,0.0001,2]
[396492755,1765000995384,152.14,0.000101,2]
[396492756,1765000995672,152.14,0.000102,2]
[396492757,1765000995960,152.14,0.000102,2]
[396492758,1765000996248,152.14,0.000103,2]
[396492759,1765000996538,152.14,0.000104,2]
[396492760,1765000996819,152.14,0.000105,2]
[396492761,1765000997158,152.14,0.000106,2]
[396492762,1765000997501,152.14,0.000107,2]
[396492763,1765000997793,152.14,0.000107,2]
[396492764,1765000998079,152.14,0.000108,2]
[396492765,1765000998210,-3560.84,0.00010987,2]
[396492766,1765001001287,-152.14,0.000109,2]
[396492767,1765001001353,-3793.27,0.00010988,2]
[396492768,1765001007373,-500.0,0.00010987,2]
[396492769,1765001007404,-2441.19905485,0.00010988,2]
[396492770,1765001007459,-4117.6118903,0.00010988,2]
[396492771,1765001010001,5000.0,0.0001085,2]
[396492772,1765001013499,-3293.19,0.00010987,2]
[396492773,1765001013528,-416.83,0.00010988,2]
[396492774,1765001013559,-500.0,0.00010988,2]
[396492775,1765001013589,-500.0,0.00010988,2]
[396492776,1765001013618,-79.97,0.00010988,2]
[396492777,1765001013752,-420.03,0.00010988,2]
[396492778,1765001016580,-1108.94,0.00010987,2]
[396492779,1765001016611,-612.51,0.00010988,2]
[396492780,1765001016640,-500.0,0.00010988,2]
[396492781,1765001016671,-500.0,0.00010988,2]
[396492782,1765001016701,-500.0,0.00010988,2]
[396492783,1765001017018,-3557.11,0.00010988,2]
[396492784,1765001022239,150.0,8.088e-05,2]
[396492785,1765001022650,193.56,8.824e-05,2]
[396492786,1765001023103,290.34,9.559e-05,2]
[396492787,1765001023517,387.11,0.00010294,2]
[396492788,1765001033080,5000.0,0.00010948,2]
[396492789,1765001041166,3979.0,0.00010948,2]
[396492790,1765001041191,1021.0,0.00010948,2]
[396492791,1765001054203,151.74,0.0001,2]
[396492792,1765001054513,151.74,0.000101,2]
[396492793,1765001054791,151.74,0.000102,2]
[396492794,1765001055081,151.74,0.000103,2]
[396492795,1765001055384,151.74,0.000103,2]
[396492796,1765001055684,151.74,0.000104,2]
[396492797,1765001055976,151.74,0.000105,2]
[396492798,1765001056164,5000.0,0.00010948,2]
[396492799,1765001056285,151.74,0.000106,2]
[396492800,1765001056573,151.74,0.000107,2]
[396492801,1765001056872,151.74,0.000108,2]
[396492802,1765001057144,151.74,0.000109,2]
[396492803,1765001064367,2309.87,0.00010948,2]
[396492804,1765001064392,2690.13,0.00010948,2]
[396492805,1765001079713,5000.0,0.00010948,2]
[396492806,1765001087628,2309.88,0.00010948,2]
[396492807,1765001087657,2690.12,0.00010948,2]
[396492808,1765001102459,150.0,8.096e-05,2]
[396492809,1765001102852,217.9,8.832e-05,2]
[396492810,1765001103590,326.86,9.568e-05,2]
[396492811,1765001103695,435.81,0.00010304,2]
[396492812,1765001103769,5000.0,0.00010948,2]
[396492813,1765001111662,1179.32,0.00010948,2]
[396492814,1765001111689,3820.68,0.00010948,2]
[396492815,1765001120201,151.35,0.0001,2]
[396492816,1765001120471,151.35,0.000101,2]
[396492817,1765001120745,151.35,0.000102,2]
[396492818,1765001121019,151.35,0.000103,2]
[396492819,1765001121307,151.35,0.000103,2]
[396492820,1765001124537,151.35,0.000104,2]
[396492821,1765001124643,151.35,0.000105,2]
[396492822,1765001124755,151.35,0.000106,2]
[396492823,1765001125575,151.35,0.000107,2]
[396492824,1765001126019,151.35,0.000108,2]
[396492825,1765001126602,151.35,0.000109,2]
[396492826,1765001127493,5000.0,0.00010948,2]
[396492827,1765001135403,3335.16,0.00010948,2]
[396492828,1765001135431,1664.84,0.00010948,2]
[396492829,1765001150657,5000.0,0.00010948,2]
[396492830,1765001158450,3335.17,0.00010948,2]
[396492831,1765001158476,1664.83,0.00010948,2]
[396492832,1765001163538,-500.0,0.00010987,2]
[396492833,1765001163564,-417.97855825,0.00010987,2]
[396492834,1765001163591,-2400.94,0.00010987,2]
[396492835,1765001163615,-500.0,0.00010987,2]
[396492836,1765001163641,-1548.97,0.00010987,2]
[396492837,1765001163665,-500.0,0.00010987,2]
[396492838,1765001163691,-892.5628835,0.00010987,2]
[396492839,1765001174168,5000.0,0.00010948,2]
[396492840,1765001174527,151.25,0.0001,2]
[396492841,1765001175115,151.25,0.000101,2]
[396492842,1765001175179,151.25,0.000102,2]
[396492843,1765001175478,151.25,0.000103,2]
[396492844,1765001176627,151.25,0.000104,2]
[396492845,1765001177029,151.25,0.000105,2]
[396492846,1765001177311,151.25,0.000106,2]
[396492847,1765001177717,151.25,0.000107,2]
[396492848,1765001178056,151.25,0.000108,2]
[396492849,1765001178989,151.25,0.000109,2]
[396492850,1765001181985,1822.68,0.00010948,2]
[396492851,1765001182014,3177.32,0.00010948,2]
[396492852,1765001183121,150.0,8.099e-05,2]
[396492853,1765001183518,227.1,8.835e-05,2]
[396492854,1765001183906,340.64,9.572e-05,2]
[396492855,1765001184323,454.19,0.00010308,2]
[396492856,1765001198341,5000.0,0.00010948,2]
[396492857,1765001204501,178.03,0.0001,2]
[396492858,1765001205454,178.03,0.0001,2]
[396492859,1765001206176,294.7,0.00010948,2]
[396492860,1765001206201,2623.33724687,0.00010948,2]
[396492861,1765001206368,178.03,0.0001,2]
[396492862,1765001207262,178.03,0.0001,2]
[396492863,1765001208175,178.03,0.0001,2]
[396492864,1765001209061,178.03,0.0001,2]
[396492865,1765001221459,5000.0,0.00010948,2]
[396492866,1765001228559,-500.0,0.00010986,2]
[396492867,1765001228586,-569.72541422,0.00010986,2]
[396492868,1765001228616,-500.0,0.00010986,2]
[396492869,1765001228647,-483.77606378,0.00010986,2]
[396492870,1765001228674,-246.04695021,0.00010986,2]
[396492871,1765001228703,-500.0,0.00010986,2]
[396492872,1765001228734,-6479.0971165,0.00010987,2]
[396492873,1765001228760,-500.0,0.00010987,2]
[396492874,1765001228790,-716.92,0.00010987,2]
[396492875,1765001228817,-500.0,0.00010987,2]
[396492876,1765001233045,151.17,0.0001,2]
[396492877,1765001233430,151.17,0.000101,2]
[396492878,1765001233719,151.17,0.000103,2]
[396492879,1765001234047,151.17,0.000104,2]
[396492880,1765001234457,151.17,0.000105,2]
[396492881,1765001234753,151.17,0.000107,2]
[396492882,1765001235038,151.17,0.000108,2]
[396492883,1765001235335,151.17,0.000109,2]
[396492884,1765001244359,455.19275313,0.00010948,2]
[396492885,1765001244385,4544.80724687,0.00010948,2]
[396492886,1765001268202,5000.0,0.00010948,2]
[396492887,1765001270602,150.0,8.086e-05,2]
[396492888,1765001271024,226.75,8.822e-05,2]
[396492889,1765001271940,78.45275313,9.557e-05,2]
[396492890,1765001271968,261.66724687,9.557e-05,2]
[396492891,1765001272355,453.5,0.00010292,2]
[396492892,1765001282862,9284.84275313,0.00010888,2]
[396492893,1765001282890,10000.01,0.00010888,2]
[396492894,1765001282915,10000.01,0.00010888,2]
[396492895,1765001282942,10000.01,0.00010888,2]
[396492896,1765001282967,10000.01,0.00010888,2]
[396492897,1765001282992,10000.01,0.00010888,2]
[396492898,1765001283016,10000.01,0.00010888,2]
[396492899,1765001283045,10000.01,0.00010888,2]
[396492900,1765001283071,10000.01,0.00010888,2]
[396492901,1765001288271,-254.53345056,0.00010888,2]
[396492902,1765001289847,-167.13720144,0.00010888,2]
[396492903,1765001291478,151.13,0.0001,2]
[396492904,1765001291513,5000.0,0.0001085,2]
[396492905,1765001291774,151.13,0.000102,2]
[396492906,1765001291811,-272.02046017,0.00010888,2]
[396492907,1765001292000,151.13,0.000103,2]